{"text_format":"1","workbook":"xlsx","n_sheets":5,"sheets":["dataset","simple function","built-in","highlight","diy"],"not_rendered":{"charts":0,"images":0,"macros":1,"external_links":0,"defined_names":0,"comments":0,"pivot_tables":0},"unopened":[],"bounds":{"document_bytes":16777216,"sheet_cells":100000,"rows_first":2000,"rows_last":500,"rows_between":2000,"halvings":0,"cell_chars":16384,"cell_head_chars":4096},"cells_cut":0,"cells_raw":0,"read":"whole","date_system":"1900"}

{"sheet":"dataset","index":0,"n_rows":11,"n_cols":3,"rows_kept":11,"cut":false,"hidden":false,"merged":[[1,1,1,2]]}
[]
[null,"Finding Special Characters"]
[]
[null,"Text","Character Presence"]
[null,"Hey, what a Surprise!",{"$f":"findSpecialCharacters(B5)","v":true}]
[null,"adampage@gmail.com",{"$f":"findSpecialCharacters(B6)","v":true}]
[null,"Shadow Blade",{"$f":"findSpecialCharacters(B7)","v":false}]
[null,"2<x<10",{"$f":"findSpecialCharacters(B8)","v":true}]
[null,"No Holds Barred",{"$f":"findSpecialCharacters(B9)","v":false}]
[null,"Bread & Butter",{"$f":"findSpecialCharacters(B10)","v":true}]
[null,"Eibar King ",{"$f":"findSpecialCharacters(B11)","v":false}]

{"sheet":"simple function","index":1,"n_rows":11,"n_cols":3,"rows_kept":11,"cut":false,"hidden":false,"merged":[[1,1,1,2]]}
[]
[null,"Simple User Defined Function"]
[]
[null,"Text","Character Presence"]
[null,"Hey, what a Surprise!",{"$f":"CheckSpecialCharacters(B5)","v":true}]
[null,"adampage@gmail.com",{"$f":"CheckSpecialCharacters(B6)","v":true}]
[null,"Shadow Blade",{"$f":"CheckSpecialCharacters(B7)","v":false}]
[null,"2<x<10",{"$f":"CheckSpecialCharacters(B8)","v":true}]
[null,"No Holds Barred",{"$f":"CheckSpecialCharacters(B9)","v":false}]
[null,"Bread & Butter",{"$f":"CheckSpecialCharacters(B10)","v":true}]
[null,"Eibar King",{"$f":"CheckSpecialCharacters(B11)","v":false}]

{"sheet":"built-in","index":2,"n_rows":11,"n_cols":3,"rows_kept":11,"cut":false,"hidden":false,"merged":[[1,1,1,2]]}
[]
[null,"Using Built-in VBA Function"]
[]
[null,"Text","Character Presence"]
[null,"Hey, what a Surprise!",{"$f":"findSpecialCharacters(B5)","v":true}]
[null,"adampage@gmail.com",{"$f":"findSpecialCharacters(B6)","v":true}]
[null,"Shadow Blade",{"$f":"findSpecialCharacters(B7)","v":false}]
[null,"2<x<10",{"$f":"findSpecialCharacters(B8)","v":true}]
[null,"No Holds Barred",{"$f":"findSpecialCharacters(B9)","v":false}]
[null,"Bread & Butter",{"$f":"findSpecialCharacters(B10)","v":true}]
[null,"Eibar King ",{"$f":"findSpecialCharacters(B11)","v":false}]

{"sheet":"highlight","index":3,"n_rows":11,"n_cols":2,"rows_kept":11,"cut":false,"hidden":false,"merged":[]}
[]
[null,"Highlighting by Special Characters"]
[]
[null,"Text"]
[null,"Hey, what a Surprise!"]
[null,"adampage@gmail.com"]
[null,"Shadow Blade"]
[null,"2<x<10"]
[null,"No Holds Barred"]
[null,"Bread & Butter"]
[null,"Eibar King "]

{"sheet":"diy","index":4,"n_rows":11,"n_cols":2,"rows_kept":11,"cut":false,"hidden":false,"merged":[]}
[]
[null,"Do It Yourself"]
[]
[null,"Text"]
[null,"Hey, what a Surprise!"]
[null,"adampage@gmail.com"]
[null,"Shadow Blade"]
[null,"2<x<10"]
[null,"No Holds Barred"]
[null,"Bread & Butter"]
[null,"Eibar King "]